Cogmind - Beta 13 @@@ ROGUE MODE // 2024.04.04 @ 05:24:01 Player: Peregrine Result: Self-destructed Performance ------------- Evolutions (2) 1000 Regions Visited (3) 600 Robots Destroyed (45) 225 Value Destroyed (1043) 1043 Prototype IDs (3) 60 Alien Tech Used (0) 0 Bonus (0) 0 TOTAL SCORE: 2928 Bonus ------- None Cogmind --------- Core Integrity 272/550 Matter 221/300 Energy 26/100 System Corruption 2% Temperature Cool (40) Movement Walking (120) Location -8/Materials Parts ------- > --- POWER (1) -------- (None) > --- PROPULSION (4) --- Improved Carbon-fiber Leg Improved Carbon-fiber Leg > --- UTILITY (4) ------ Medium Storage Unit Improved Utility Shielding Hacking Suite Hacking Suite > --- WEAPON (2) ------- Heavy Laser > --- INVENTORY (10) --- Improved Heat Sink Structural Scanner Sensor Array Recoil Stabilizer Reaction Control System Improved Power Shielding Peak State ------------ > --- POWER ------------ Light Deuterium Engine > --- PROPULSION ------- Improved Carbon-fiber Leg Improved Carbon-fiber Leg Improved Carbon-fiber Leg Improved Carbon-fiber Leg > --- UTILITY ---------- Medium Storage Unit Improved Signal Interpreter Hacking Suite Hacking Suite > --- WEAPON ----------- Heavy Laser High-powered Shotgun > --- INVENTORY -------- Improved Ion Engine Improved Heat Sink Structural Scanner Sensor Array Reaction Control System Heavy Laser Advanced Beam Cannon Proton Missile Launcher [Rating: 38] Favorites ----------- Power Ion Engine Engine Ion Engine Power Core Light Nuclear Core Propulsion Aluminum Leg Treads Light Treads Leg Aluminum Leg Wheel Compact Wheel Flight Unit Improved Flight Unit Utility Hacking Suite Device Sensor Array Storage Small Storage Unit Processor Signal Interpreter Hackware Hacking Suite Protection Improved Utility Shielding Weapon Small Laser Energy Gun Small Laser Energy Cannon Advanced Beam Cannon Ballistic Gun Light Assault Rifle Ballistic Cannon Improved Light Cannon Launcher Proton Missile Launcher Build | -11 -10 -9 -8 ------- Run | Yrd Mat Mat Mat Slots Evolved 4 | . . 2 2 Power . | . . . . Propulsion 2 | . . . 2 Utility 2 | . . 2 . Weapon . | . . . . Parts Attached 48 | . 6 21 21 Power 5 | . . 3 2 Engine 4 | . . 2 2 Core 1 | . . 1 . Reactor . | . . . . Propulsion 12 | . 4 2 6 Treads 2 | . . 2 . Leg 7 | . 2 . 5 Wheel 2 | . 2 . . Hover . | . . . . Flight 1 | . . . 1 Utility 10 | . 1 6 3 Device 3 | . . 3 . Storage 1 | . . . 1 Processor 3 | . 1 1 1 Hackware 2 | . . 2 . Protection 1 | . . . 1 Artifact . | . . . . Weapon 21 | . 1 10 10 Energy Gun 7 | . 1 2 4 Energy Cannon 4 | . . 4 . Ballistic Gun 5 | . . 2 3 Ballistic Cannon 2 | . . 2 . Launcher 3 | . . . 3 Special Weapon . | . . . . Impact Weapon . | . . . . Slashing Weapon . | . . . . Piercing Weapon . | . . . . Special Melee Weapon . | . . . . Unidentified Prototypes 3 | . . 1 2 Parts Lost 5 | . . . 5 Power 1 | . . . 1 Propulsion 2 | . . . 2 Utility . | . . . . Weapon 2 | . . . 2 Highest Loss Streak 5 | . . . 5 To Critical Strikes . | . . . . Average Slot Usage (%) 94 | . 85 94 98 Engine 9 | . 14 8 8 Treads 3 | . . 8 . Leg 22 | . 22 13 34 Wheel 1 | . 5 . . Device 2 | . . 6 . Storage 10 | . 14 11 9 Processor 9 | . . 14 8 Hackware 10 | . . 8 18 Energy Gun 7 | . 23 1 7 Energy Cannon 3 | . . 7 1 Ballistic Gun 6 | . 4 5 7 Ballistic Cannon 3 | . . 7 . Naked Turns . | . . . . Heaviest Build 30 | 12 12 21 30 Greatest Support 72 | 20 32 40 72 Greatest Overweight (x) 1 | . . 1 1 Average Overweight (x) . | . . . . Largest Inventory Capacity 10 | 8 8 8 10 Average Capacity 8 | 8 8 8 9 Most Carried 10 | 6 8 8 10 Average Carried 7 | 6 6 7 8 Final Capacity 10 | 8 8 8 10 Final Carried 8 | 6 7 8 6 Class Distribution -------------------- 59% | Mutant 33% | Hacker-Mutant 3% | Skirmisher 3% | Scavenger-Mutant Dominant Class ---------------- Mutant | -10/Materials Mutant | -9/Materials Hacker-Mutant | -8/Materials Resources | -11 -10 -9 -8 ----------- Run | Yrd Mat Mat Mat Matter Collected 1026 | 198 72 327 429 Remotely . | . . . . Salvage Created 1364 | . 165 412 787 Parts 92 | . 11 40 41 Haulers Intercepted 4 | . . 1 3 Recyclers Shooed . | . . . . Parts Field Recycled . | . . . . Retrieved Matter . | . . . . Parts Self-Destructed . | . . . . Prevented . | . . . . Kills | -11 -10 -9 -8 ------- Run | Yrd Mat Mat Mat Combat Hostiles Destroyed 30 | . 5 12 13 Guns 25 | . 5 8 12 Cannons 4 | . . 4 . AOE 1 | . . . 1 Classes Destroyed 10 | . 3 4 3 Worker 1 | . . . 1 Builder 1 | . . 1 . Hauler 4 | . . 1 3 Recycler 1 | . . . 1 Operator 2 | . . 2 . Watcher 6 | . 1 2 3 Swarmer 13 | . 3 7 3 Grunt 13 | . 2 4 7 Duelist 1 | . . . 1 Sentry 3 | . . 1 2 Best Kill Streak 5 | . 3 4 5 Combat Bots Only 4 | . 3 4 4 Max Kills in Single Turn 2 | . 2 2 1 Gunslinging . | . . . . Exploded 1 | . . . 1 Melee . | . . . . Uniques/NPCs Destroyed . | . . . . Combat | -11 -10 -9 -8 -------- Run | Yrd Mat Mat Mat Hostile Shots Fired 201 | . 18 79 104 Missed 58 | . 4 23 31 Damage Taken 2018 | . 140 575 1303 Core 392 | . 29 85 278 Absorbed by Shields . | . . . . Redirected to Shielding 18 | . . . 18 Core Remaining (%) 88 | 100 88 78 . Volleys Fired 135 | . 26 46 63 Largest 2 | . 2 2 2 Hottest 108 | . 80 107 108 Shots Fired 245 | . 51 73 121 Gun 199 | . 51 33 115 Cannon 40 | . . 40 . Launcher 6 | . . . 6 Special . | . . . . Kinetic 112 | . 10 44 58 Thermal 121 | . 41 23 57 Explosive . | . . . . Electromagnetic 12 | . . 6 6 Robot Hit Streak 11 | . 8 11 9 Robot Miss Streak 8 | . 4 8 6 Penetration Max . | . . . . Secondary Targets . | . . . . Shots Hit Robots 159 | . 27 51 81 Core Hits 79 | . 11 22 46 Critical Kills . | . . . . Critical Parts Destroyed . | . . . . Critical Strikes 4 | . . 1 3 Burn 3 | . . . 3 Blast 1 | . . 1 . Melee Attacks . | . . . . Impact . | . . . . Slashing . | . . . . Piercing . | . . . . Sneak Attacks . | . . . . Combat Hostiles . | . . . . Follow-up Attacks . | . . . . Damage Inflicted 3156 | . 297 929 1930 Guns 2132 | . 297 353 1482 Cannons 574 | . . 574 . Explosions 448 | . . . 448 Melee . | . . . . Ramming 2 | . . 2 . Kinetic 1455 | . 22 551 882 Thermal 1264 | . 275 310 679 Explosive . | . . . . Electromagnetic 435 | . . 66 369 Impact . | . . . . Slashing . | . . . . Piercing . | . . . . Highest Corruption 2 | . . . 2 Average Corruption 2 | . . . 2 Corruption Purged . | . . . . Corruption Blocked . | . . . . Effects 3 | . . . 3 Matter Fused 1 | . . . 1 Data Loss (minor) 2 | . . . 2 Overload Shots . | . . . . Overflow Damage 9 | . . 7 2 Projectiles 7 | . . 7 . Explosions 2 | . . . 2 Melee . | . . . . Knockbacks 3 | . . 3 . Impact . | . . . . Kinetic 2 | . . 2 . Secondary 1 | . . 1 . Self-Inflicted Damage 7 | . . . 7 Shots 3 | . . . 3 Rammed . | . . . . Targets Rammed 2 | . . 2 . Kicked 2 | . . 2 . Crushed . | . . . . Highest Temperature 225 | . 114 174 225 Average Temperature 49 | . 34 50 55 Received Heat Transfer 681 | . 60 90 531 Siege Activations . | . . . . Robots Corrupted . | . . . . Combat Hostiles . | . . . . Parts Fried 1 | . . . 1 Impact Corruptions . | . . . . Robots Melted . | . . . . Combat Hostiles . | . . . . Parts Melted 1 | . . 1 . Heat Transferred 2773 | . 625 555 1593 Parts Sabotaged . | . . . . Parts Stolen . | . . . . Parts Stripped . | . . . . Power Chain Reactions 3 | . . . 3 Alert | -11 -10 -9 -8 ------- Run | Yrd Mat Mat Mat Peak Influence 316 | . 193 232 316 Initial 81 | . . 81 . Average 85 | . 98 105 128 Maximum Alert Level 1 | . . 1 1 Low Security (%) 90 | 100 100 92 76 Level 1 9 | . . 7 23 Level 2 . | . . . . Level 3 . | . . . . Level 4 . | . . . . Level 5 . | . . . . High Security . | . . . . Max Security . | . . . . Squads Dispatched 7 | . 2 2 3 Investigation 1 | . . 1 . Extermination . | . . . . Reinforcement 6 | . 2 1 3 Assault . | . . . . Garrison . | . . . . Intercept . | . . . . Searches Triggered . | . . . . Construction Impeded 1 | . . . 1 Haulers Reinforced . | . . . . Active Scanning Responses . | . . . . Cargo Convoy Interrupts . | . . . . Stealth | -11 -10 -9 -8 --------- Run | Yrd Mat Mat Mat Distress Signals 4 | . . 2 2 Communications Jammed . | . . . . Distress Signals . | . . . . Times Spotted 70 | . 9 25 36 Peak Tracking Total 8 | . 3 5 8 Tactical Retreats 4 | . . 2 2 Traps | -11 -10 -9 -8 ------- Run | Yrd Mat Mat Mat Traps Triggered 3 | . . . 3 Indirectly 2 | . . . 2 Trap Hack Attempts . | . . . . Triggered . | . . . . Disarmed . | . . . . Reprogrammed . | . . . . Reused . | . . . . Traps Extracted . | . . . . Installed . | . . . . Triggered 1 | . . . 1 Machines | -11 -10 -9 -8 ---------- Run | Yrd Mat Mat Mat Machines Disabled 1 | . . . 1 Max in Single Turn 1 | . . . 1 Machines Repaired . | . . . . Machines Dismantled . | . . . . Machines Sabotaged . | . . . . Overloaded Fab Kills . | . . . . Hacking | -11 -10 -9 -8 --------- Run | Yrd Mat Mat Mat Machines Accessed 11 | . 1 6 4 Terminals 9 | . 1 5 3 Fabricators . | . . . . Repair Stations 1 | . . . 1 Recycling Units . | . . . . Scanalyzers 1 | . . 1 . Garrison Access . | . . . . Total Hacks 38 | . 2 22 14 Successful 20 | . 2 11 7 Failed 18 | . . 11 7 Catastrophic 4 | . . 3 1 Database Lockouts . | . . . . Manual 34 | . 2 19 13 Terminals 35 | . 2 20 13 Fabricators . | . . . . Repair Stations 1 | . . . 1 Recycling Units . | . . . . Scanalyzers 2 | . . 2 . Garrison Access . | . . . . Terminal Hacks 11 | . 1 8 2 Alert Level 1 | . . 1 . Unreport Threat 4 | . . 4 . Locate Traps 1 | . . 1 . Transport Status 2 | . 1 1 . Investigation Status 1 | . . 1 . Garrison Status 1 | . . . 1 Zone Layout 1 | . . . 1 Fabricator Hacks . | . . . . Repair Station Hacks 1 | . . . 1 Refit 1 | . . . 1 Recycling Unit Hacks . | . . . . Scanalyzer 2 | . . 2 . Insert Component 1 | . . 1 . Analyze 1 | . . 1 . Garrison Access Hacks . | . . . . Unauthorized Hacks 6 | . 1 1 4 Terminals 6 | . 1 1 4 Assimilate 1 | . . . 1 Botnet 3 | . 1 1 1 Disrupt 1 | . . . 1 Operators 1 | . . . 1 Fabricators . | . . . . Repair Stations . | . . . . Recycling Units . | . . . . Scanalyzers . | . . . . Garrison Access . | . . . . Data Cores Recovered 1 | . . 1 . Used . | . . . . Hacking Detections 10 | . 1 6 3 Full Trace Events 2 | . . 2 . Feedback Events . | . . . . Feedback Blocked . | . . . . Robot Schematics Acquired . | . . . . Robots Built . | . . . . Authchips . | . . . . Time . | . . . . Total Robot Build Rating . | . . . . Part Schematics Acquired 1 | . . 1 . Parts Built . | . . . . Authchips . | . . . . Time . | . . . . Total Part Build Rating . | . . . . Parts Repaired . | . . . . Time . | . . . . Parts Recycled . | . . . . Recycled Matter . | . . . . Retrieved Matter . | . . . . Retrieved Components . | . . . . Parts Scanalyzed 1 | . . 1 . Part Schematics Acquired 1 | . . 1 . Parts Damaged . | . . . . Bothacking | -11 -10 -9 -8 ------------ Run | Yrd Mat Mat Mat Used RIF Installer . | . . . . Robots Hacked . | . . . . Non-combat . | . . . . Combat . | . . . . Robot Hacks Applied . | . . . . Relay Couplers Released . | . . . . Fabnet Peak Effective % . | . . . . Robots Rewired . | . . . . Allies Hacked . | . . . . Hacks Repelled . | . . . . Allies | -11 -10 -9 -8 -------- Run | Yrd Mat Mat Mat Total Allies . | . . . . Largest Group . | . . . . Highest-Rated Group . | . . . . Highest-Rated Ally . | . . . . Total Orders . | . . . . Ally Attacks . | . . . . Total Damage . | . . . . Kills . | . . . . Allies Corrupted . | . . . . Allies Melted . | . . . . Intel | -11 -10 -9 -8 ------- Run | Yrd Mat Mat Mat Robot Analysis Total . | . . . . Derelict Logs Recovered . | . . . . Drone Launches . | . . . . Drone Recoveries . | . . . . Exploration | -11 -10 -9 -8 ------------- Run | Yrd Mat Mat Mat Turns Passed 2483 | 592 346 845 700 Spaces Moved 1044 | 134 143 415 352 Core . | . . . . Treads 125 | . . 119 6 Legs 884 | 134 108 296 346 Wheels 35 | . 35 . . Hover . | . . . . Flight . | . . . . Fastest Speed 100 | 120 100 120 120 Average Speed 125 | 120 115 135 120 Slowest Speed 190 | 120 120 190 190 Overloaded Moves . | . . . . Propulsion Burnouts . | . . . . Robots Hopped . | . . . . Cave-ins Triggered . | . . . . Exploration Rate (%) 30 | 21 24 51 26 Regions Visited 3 Branch Regions . Pre-discovered Areas . | . . . . Known Exits Taken 1 | . . 1 . Unknown Exits Taken 2 | 1 1 . . Scrap Searched . | . . . . Spaces Dug . | . . . . Terrain Destroyed 13 | . . . 13 Melee . | . . . . Projectile . | . . . . AOE 13 | . . . 13 Terrain Rammed . | . . . . Walls Destroyed . | . . . . Machines Disabled . | . . . . Actions | -11 -10 -9 -8 --------- Run | Yrd Mat Mat Mat Total 1972 | 565 275 626 506 Wait 668 | 432 92 108 36 Move 1041 | 133 142 414 352 Hop . | . . . . Pick Up 35 | . 5 16 14 Fast Attach 13 | . 1 5 7 Attach 12 | . 1 6 5 Detach 3 | . . 2 1 Swap 23 | . 4 10 9 Drop 40 | . 4 17 19 Fire 135 | . 26 46 63 Melee . | . . . . Ram . | . . . . Kick 2 | . . 2 . Crush . | . . . . Escape Stasis . | . . . . Rewire . | . . . . Trap . | . . . . Miscellaneous . | . . . . Route ------- -11/Scrapyard -10/Materials -9/Materials (discovered 2 exits: *Mat / *Min) -8/Materials History --------- Turn | Location | Event 1 | -11/Scrapyard | Discovered new exit (range 3) 593 | -11/Scrapyard | Entered Materials 594 | -10/Materials | Build established: Mutant 723 | -10/Materials | Discovered new exit (range 16) 939 | -10/Materials | Entered another Materials area 939 | -9/Materials | Evolved 2 slots: Utility x2 1331 | -9/Materials | Discovered new exit (range 7) 1339 | -9/Materials | Identified exit to Mines 1761 | -9/Materials | Discovered new exit (range 7) 1782 | -9/Materials | Identified exit to Materials 1784 | -9/Materials | Entered another Materials area 1784 | -8/Materials | Evolved 2 slots: Propulsion x2 1893 | -8/Materials | Build established: Hacker-Mutant 2484 | -8/Materials | Core integrity fell below 50% 2484 | -8/Materials | Self-destructed Last Messages --------------- 02456_ Destroyed Targeting Computer. 02456_ G-47 Trooper destroyed. 02456_ Knocked back. 02457_ Acquired 6 matter. 02459_ Chain reaction triggered in Corrupted Lgt. Ion Engine. 02459_ Chain reaction triggered in Corrupted Lgt. Deuterium Engine. 02463_ Hpw. Shotgun destroyed. 02466_ Slug penetrates Wall. 02466_ Neutrino Reactor explodes. 02466_ Terminal disabled. 02467_ Critical hit (Burn: +37). 02469_ Discarded Imp. Signal Interpreter. 02473_ Imp. Ion Engine destroyed. 02474_ Imp. Carbon-fiber Leg destroyed. 02476_ Shock Trap short circuited. 02476_ Door malfunctions. 02476_ The floor emits a surge of raw power. 02479_ Proton Missile Launcher destroyed. 02480_ Slug penetrates G-47 Trooper. 02481_ Acquired 36 matter. Map ----- +----------------------------------------------------+ | ????????????????????????????????????# # """ #?? | | ????????????????????????????????????# # #?? | | ?????????????????? ???????????????# # #?? | | ?????????????????? ???????????????# ########## | | ?????????????????? ???????????????# # | | ?????????????????# #??????????????# # = | | ?????????????????# #??????????????# + | | ?????????????????# #??????????????# #% | | ?????????????????# #??????????????# # """ """ | | ????????????????## #??????????????# # """ """ | | ????????????????# ??????????????# # """ """? | | ????????????????# ??????????????# # | | ????????????????? ??????????????# #########? | | ????????????????? [[???????????????# #????????? | | ????????????????? %=???????????????# #????????? | | ???????????????## = ???????????????# #????????? | | ?????????????### # % ???????????????# #????????? | | ?????????????#" #???????????????# ###????????? | | ?????????????# ][ #???????????????# #??????????? | | ?????????????# =!#???????????????# #??????????? | | ?????????????# /[*[#???????????????# #??????????? | | ?????????????# [ ]=#???????????????# ##########?? | | ?????????????# % #???????????????# # #?? | | ?????????????# #???????????????# #""" """#?? | | ???????###+##### / H################# #""" R"#?? | | ?? a g ^ @ % k#""" """#?? | | ?? g + #?? | | ?? gg ^ % #""" #?? | | ???#######"### ################### #""" ] #?? | | ???????? ? ??????????????????# #""" [ #?? | | ??????! ???????????????##### # #?? | | ?????? ???????????????# ##########?? | | ??????? ????????????????# #??????????? | | ??????? ????????????????#] ############ | | ???????? ?????????????????#]] | | ???????? ?????????????????# | | ??????????? ??????????????????#[[ | | ??????????????????????????????##### ############ | | ??????????????????????????????????# #??????????? | | ??????????????????????????????????#####??????????? | | ?????????????????????????????????????????????????? | | ?????????????????????????????????????????????????? | | ?????????????????????????????????????????????????? | | ?????????????????????????????????????????????????? | | ?????????????????????????????????????????????????? | | ?????????????????????????????????????????????????? | | | | | | | | | +----------------------------------------------------+ Best States ------------- Heat Dissipation 50 Energy Generation 14 Energy Capacity 265 Matter Stores 300 Matter Capacity 300 Sight Range 18 Robot Scan Range 14 Terrain Scan Density 10 Utility Shielding 66 Evasion (%) 55 Recoil Reduction 2 Offensive Hacking 20 Item Schematics ----------------- Datajack | -9/Materials | Scanalyzed Robot Schematics ------------------ None Fabricated ------------ Nothing Alien Tech Used ----------------- None Achievements -------------- None Challenges ------------ None Game ------ Seed PointProcessingRigger Manual? 0 Play Time 00:25:52 Cumulative 79.6 hours Start 2024.04.04 @ 04:58:36 End 2024.04.04 @ 05:24:01 Sessions 1 Manual Loads 0 Difficulty Rogue Special Mode None Game No. 92 Rogue 77 Adventurer 15 Explorer 0 Win Type - Total 1 Types 0/0/1/0/0/0/0/0/0 Lore% 31 Gallery% 58 Achievement% 47 Wizard Run 0 Options --------- Layout 0 ASCII 0 Keyboard 0 Movement Mouse Keybinds 0 Fullscreen 2 Font 36/Smallcaps Map View 76x50 Zoom Use 0% Tactical HUD 1 Map Filters NONE Filters NONE Steam 1 RUN: 0cd7b0df-03d9-4ed9-b18e-893d9a9d9ecc